bitfinex/quotes_ETHUSD_20250930
["timestamp","ask_amount","ask_price","bid_price","bid_amount"]
[1759256701959,0.001,4113.6,4113.5,5.20701981]
[1759256702258,0.001,4113.6,4113.5,5.99901981]
[1759256702469,0.001,4113.6,4113.5,6.68251981]
[1759256702830,0.001,4113.6,4113.5,6.97739477]
[1759256707765,0.001,4113.6,4113.5,7.09899477]
[1759256709468,0.001,4114.1,4114.0,8.93243556]
[1759256709634,0.001,4114.1,4114.0,11.78444244]
[1759256710371,0.001,4114.1,4114.0,12.03414244]
[1759256710576,0.001,4114.1,4114.0,14.7619784]
[1759256710968,0.001,4114.1,4114.0,14.3281784]
[1759256711278,0.001,4114.1,4114.0,14.0784784]
[1759256712176,0.001,4114.1,4114.0,5.14604284]
[1759256712379,0.229,4114.1,4114.0,6.07473123]
[1759256712579,0.001,4114.1,4114.0,6.07473123]
[1759256712749,0.001,4114.1,4114.0,6.31533123]
[1759256713155,0.001,4114.1,4114.0,6.07473123]
[1759256713360,0.001,4114.1,4114.0,6.93133041]
[1759256714388,0.001,4114.1,4114.0,4.50060606]
[1759256714596,0.001,4114.1,4114.0,6.93133041]
[1759256714781,0.6129,4114.1,4114.0,2.776]
[1759256715284,0.7345,4114.1,4114.0,2.776]
[1759256716007,0.7345,4114.1,4113.6,0.792]
[1759256716283,0.228,4114.0,4113.7,2.775]
[1759256716494,0.1216,4113.8,4113.7,2.775]
[1759256716857,0.1216,4113.8,4113.7,2.79930901]
[1759256717191,0.001,4114.1,4113.8,0.792]
[1759256717786,0.2293,4114.0,4113.9,2.775]
[1759256717982,0.2293,4114.0,4113.5,2.55260252]
[1759256718185,0.6132,4113.9,4113.6,2.775]
[1759256718359,0.3509,4113.8,4113.6,2.775]
[1759256718555,0.3509,4113.8,4113.3,0.002]
[1759256718863,0.3509,4113.8,4113.3,2.43309324]
[1759256718864,0.2293,4113.7,4113.3,2.43309324]
[1759256719085,0.2293,4113.6,4113.4,2.775]
[1759256719392,0.2293,4113.6,4113.4,5.20607138]
[1759256719596,0.1216,4113.8,4113.5,2.43101981]
[1759256719800,0.1216,4113.8,4113.6,2.775]
[1759256720098,0.3509,4113.8,4113.7,2.775]
[1759256720597,0.1216,4113.8,4113.7,2.775]
[1759256721198,0.7348,4113.8,4113.3,0.93432546]
[1759256721500,0.6132,4113.7,4113.4,2.775]
[1759256721663,0.2293,4113.6,4113.4,2.775]
[1759256722194,0.1216,4113.8,4113.4,5.20604932]
[1759256722602,0.3509,4113.8,4113.4,5.20604932]
[1759256722796,0.3509,4113.8,4113.4,2.775]
[1759256723189,0.1216,4113.8,4113.4,2.775]
[1759256723393,0.2293,4113.7,4113.4,2.775]
[1759256723592,0.5055,4113.8,4113.5,5.20601371]
[1759256723593,0.1216,4113.8,4113.5,5.20601371]
[1759256724664,0.1216,4113.8,4113.5,2.775]
[1759256725073,0.1216,4113.8,4113.7,2.43090162]
[1759256725275,0.1216,4113.8,4113.7,2.775]
[1759256726002,0.1216,4113.8,4113.7,2.85101573]
[1759256726822,0.1216,4113.8,4113.7,5.97121735]
[1759256726967,0.1216,4114.0,4113.8,2.43080804]
[1759256727301,0.1216,4114.0,4113.9,3.54031573]
[1759256727610,0.1216,4114.0,4113.9,5.52879917]
[1759256727997,0.1216,4114.0,4113.9,5.97109917]
[1759256728197,0.001,4114.1,4114.0,2.43072435]
[1759256728404,0.001,4114.1,4114.0,4.01234732]
[1759256728715,0.001,4114.1,4114.0,3.51501573]
[1759256728887,0.001,4114.1,4114.0,6.38804008]
[1759256729086,0.001,4114.1,4114.0,8.55246752]
[1759256729285,0.001,4114.1,4114.0,10.63816752]
[1759256729469,0.001,4114.1,4114.0,11.32746752]
[1759256729871,0.001,4114.1,4114.0,5.43244317]
[1759256730113,0.001,4114.1,4114.0,2.85101573]
[1759256730314,0.001,4114.1,4114.0,5.28174008]
[1759256730806,0.001,4114.1,4114.0,5.97104008]
[1759256731210,0.001,4114.1,4114.0,12.3818879]
[1759256731871,0.001,4114.1,4114.0,6.76304008]
[1759256732072,0.001,4114.1,4114.0,8.24431242]
[1759256732485,0.001,4114.1,4114.0,8.24430224]
[1759256734110,0.001,4114.1,4114.0,13.86315006]
[1759256734479,0.001,4114.1,4114.0,16.26315006]
[1759256734814,0.001,4114.4,4114.2,0.792]
[1759256735118,0.001,4114.4,4114.3,15.71871549]
[1759256735313,0.001,4114.4,4114.3,16.40801549]
[1759256736310,0.001,4114.4,4114.3,18.93701549]
[1759256738212,0.001,4114.4,4114.3,16.40801549]
[1759256738408,0.001,4114.4,4114.3,13.75461549]
[1759256738623,0.001,4114.4,4114.3,16.52961549]
[1759256739120,0.001,4114.4,4114.3,13.75461549]
[1759256739321,0.001,4114.4,4114.3,16.52961549]
[1759256740995,0.001,4114.4,4114.3,16.52960211]
[1759256741234,0.001,4114.4,4114.3,13.75460211]
[1759256741437,0.001,4114.4,4114.3,16.52860211]
[1759256741755,0.001,4114.4,4114.3,23.52860211]
[1759256745845,0.001,4114.4,4114.3,23.52860337]
[1759256746032,0.001,4114.4,4114.3,20.75460337]
[1759256746233,0.001,4114.4,4114.3,23.52860337]
[1759256749777,0.001,4114.4,4114.3,20.06530337]
[1759256749944,0.001,4114.4,4114.3,17.22045555]
[1759256750474,0.001,4114.4,4114.3,17.22045823]
[1759256752775,0.001,4114.4,4114.3,14.44645823]
[1759256752943,0.6126,4114.4,4114.3,7.19759611]
[1759256753144,0.6126,4114.4,4114.3,9.84999611]
[1759256753380,3.16468804,4114.4,4114.3,9.84999611]
[1759256753567,3.16468804,4114.4,4114.3,9.774]
[1759256754681,0.7342,4114.4,4114.3,9.774]
[1759256755042,3.16468804,4114.4,4114.3,9.774]
[1759256756160,3.16468804,4114.4,4114.3,7.0]
[1759256756481,3.16468804,4114.4,4114.3,9.774]
[1759256757358,0.1226,4114.4,4114.3,9.774]
[1759256757558,0.7342,4114.4,4114.3,9.774]
[1759256758378,0.3503,4114.4,4114.3,9.774]
[1759256758759,2.78078804,4114.4,4114.3,9.774]
[1759256758954,0.3503,4114.4,4114.3,9.774]
[1759256759888,0.1226,4114.4,4114.3,9.774]
[1759256760092,0.3503,4114.4,4114.3,9.774]
[1759256760395,0.3503,4114.4,4114.3,2.774]
[1759256760561,3.16468804,4114.4,4114.3,2.774]
[1759256761461,2.43054711,4114.3,4114.2,4.0]
[1759256761810,0.6116,4114.3,4114.2,6.774]
[1759256762804,0.1226,4114.4,4114.3,2.43054711]
[1759256762966,0.001,4114.4,4114.3,3.14725258]
[1759256763277,0.001,4114.4,4114.3,4.95668874]
[1759256763477,0.001,4114.4,4114.3,10.55123109]
[1759256763678,0.001,4114.4,4114.3,1.80943616]
[1759256763862,0.001,4114.4,4114.3,1.83374163]
[1759256764060,0.001,4114.4,4114.3,4.26428874]
[1759256764487,0.001,4114.4,4114.3,4.49072897]
[1759256764690,0.001,4114.4,4114.3,0.22644023]
[1759256764858,0.6126,4114.4,4114.3,3.00044023]
[1759256765991,0.2287,4114.4,4114.3,3.00044023]
[1759256766366,3.04308804,4114.4,4114.3,3.00044023]
[1759256766564,3.04308804,4114.4,4114.3,0.22644023]
[1759256766813,3.04308804,4114.4,4114.3,2.774]
[1759256767169,0.6126,4114.4,4114.3,2.774]
[1759256767371,3.04308804,4114.4,4114.3,2.774]
[1759256767775,0.6126,4114.4,4114.3,2.774]
[1759256767985,3.04308804,4114.4,4114.3,2.774]
[1759256768389,2.43054711,4114.3,4114.2,4.0]
[1759256768569,2.77984711,4114.3,4114.2,6.774]
[1759256769009,3.16374711,4114.3,4114.2,6.774]
[1759256769373,0.1216,4114.3,4114.2,6.774]
[1759256769875,2.77984711,4114.3,4114.2,6.774]
[1759256770076,3.16374711,4114.3,4114.2,4.0]
[1759256770403,0.1216,4114.3,4114.2,6.774]
[1759256771404,0.1216,4114.3,4114.2,4.0]
[1759256771705,0.1216,4114.3,4114.2,6.774]
[1759256771904,2.55214711,4114.3,4114.2,6.774]
[1759256772202,3.16254711,4114.3,4114.2,6.774]
[1759256772499,0.3481,4114.3,4114.2,6.774]
[1759256772703,0.001,4114.4,4114.2,6.774]
[1759256773146,0.001,4114.4,4114.3,0.2378]
[1759256773696,0.001,4114.4,4114.3,0.6863]
[1759256773904,0.001,4114.4,4114.3,1.43253]
[1759256774226,0.001,4114.4,4114.3,4.20653]
[1759256774824,0.001,4114.4,4114.3,6.66138258]
[1759256775026,0.001,4114.4,4114.3,7.42907711]
[1759256775328,0.001,4114.9,4114.7,2.43031083]
[1759256775529,0.001,4114.9,4114.8,12.20163318]
[1759256775824,0.001,4114.9,4114.8,12.86363067]
[1759256777395,0.001,4114.9,4114.8,9.29763067]
[1759256777606,0.001,4114.9,4114.8,6.45278285]
[1759256779412,0.001,4114.9,4114.8,6.01488285]
[1759256779707,0.001,4114.9,4114.8,4.04723108]
[1759256779912,0.001,4114.9,4114.8,6.01488285]
[1759256780313,0.001,4114.9,4114.8,6.47748285]
[1759256780808,0.001,4114.9,4114.8,5.76648285]
[1759256781727,0.001,4114.9,4114.8,0.56223108]
[1759256781928,0.001,4114.9,4114.8,6.47748285]
[1759256783013,0.001,4114.9,4114.8,6.01488285]
[1759256783609,0.001,4114.9,4114.8,6.47748285]
[1759256785039,0.001,4114.9,4114.8,7.26948285]
[1759256788148,0.001,4114.9,4114.8,9.66948285]
[1759256788540,0.001,4116.4,4115.7,3.22172033]
[1759256788716,0.001,4116.4,4116.3,3.22136617]
[1759256789045,0.001,4116.4,4116.3,14.24219792]
[1759256789346,0.001,4116.4,4116.3,14.95319792]
[1759256791349,0.001,4116.4,4116.3,2.62598393]
[1759256791653,0.001,4116.4,4116.3,14.8303501]
[1759256791943,0.001,4116.4,4116.3,9.62598393]
[1759256792252,0.001,4116.4,4116.3,14.8313501]
[1759256792451,0.001,4116.4,4116.3,12.20536617]
[1759256793619,0.001,4116.4,4116.3,12.70237344]
[1759256793823,0.62,4116.4,4116.3,7.0]
[1759256794021,0.2321,4116.4,4116.3,7.0]
[1759256794221,0.62,4116.4,4116.3,7.0]
[1759256794418,0.62,4116.4,4116.3,9.776]
[1759256794830,2.66140716,4116.4,4116.3,7.0]
[1759256795032,3.04930716,4116.4,4116.3,7.0]
[1759256795255,3.04930716,4116.4,4116.3,9.776]
[1759256795457,3.04930716,4116.4,4116.3,7.0]
[1759256795673,3.04930716,4116.4,4116.3,9.776]
[1759256797565,3.04930716,4116.4,4116.3,7.0]
[1759256797737,3.04930716,4116.4,4116.3,9.776]
[1759256798657,3.17090716,4116.4,4116.3,9.776]
[1759256799857,3.17090716,4116.4,4116.3,10.676]
[1759256800569,3.17090716,4116.4,4116.3,2.776]
[1759256800749,2.42936617,4116.3,4116.1,2.775]
[1759256800944,2.42995907,4115.3,4114.7,0.2484]
[1759256801164,0.1216,4115.2,4114.8,3.00092612]
[1759256801372,0.1216,4115.2,4114.9,0.91422612]
[1759256801579,0.1216,4115.2,4115.0,2.775]
[1759256802278,0.1216,4115.2,4115.1,0.6883]
[1759256802972,0.1216,4115.2,4115.0,2.775]
[1759256803181,0.1216,4115.2,4115.1,0.22619061]
[1759256803753,0.1216,4115.2,4115.0,3.0151]
[1759256804186,0.1216,4115.2,4115.1,0.22625549]
[1759256804355,0.1216,4115.2,4115.1,0.91455549]
[1759256804750,0.1216,4115.2,4115.1,0.22625549]
[1759256804956,0.1216,4115.2,4115.1,1.12625549]
[1759256805578,0.1216,4115.2,4115.1,0.22625549]
[1759256805889,0.1216,4115.2,4115.1,0.91455549]
[1759256807194,9.44939943,4116.3,4115.1,1.55082513]
[1759256807488,0.1216,4115.8,4115.2,3.68855549]
[1759256807792,0.1216,4115.8,4115.4,2.42988049]
[1759256807962,0.1216,4115.8,4115.5,3.00025549]
[1759256808161,0.1216,4115.8,4115.5,3.4623]
[1759256808361,0.1216,4115.8,4115.6,0.6883]
[1759256808690,0.1216,4115.8,4115.7,2.774]
[1759256808989,0.1216,4115.8,4115.7,3.4623]
[1759256809358,0.1216,4115.8,4115.7,2.774]
[1759256810091,2.8004613,4115.8,4115.7,3.674]
[1759256810298,2.5512613,4115.8,4115.7,3.674]
[1759256810797,0.1216,4115.8,4115.7,3.674]
[1759256811160,2.5512613,4115.8,4115.7,0.9]
[1759256811361,3.1883613,4115.8,4115.7,2.773]
[1759256811872,0.7587,4115.8,4115.7,2.773]
[1759256812171,3.1883613,4115.8,4115.7,2.773]
[1759256812370,2.8004613,4115.8,4115.7,2.773]
[1759256812991,3.1883613,4115.8,4115.7,2.773]
[1759256814991,2.8004613,4115.8,4115.7,2.773]
[1759256815492,3.1883613,4115.8,4114.7,0.72067918]
[1759256815699,3.1883613,4115.8,4114.8,2.773]
[1759256815700,2.43015142,4115.0,4114.8,2.773]
[1759256815903,2.43015142,4115.0,4114.8,3.4613]
[1759256816905,2.43015142,4115.0,4114.9,0.2401]
[1759256817104,0.1216,4115.1,4114.6,0.002]
[1759256817403,0.3708,4114.9,4114.7,2.773]
[1759256817997,2.43025177,4114.8,4114.7,2.773]
[1759256818219,2.67945177,4114.8,4114.6,0.002]
[1759256818406,2.67951083,4114.7,4114.6,0.002]
[1759256818581,2.67951083,4114.7,4114.6,0.569]
[1759256818776,2.67951083,4114.7,4114.6,0.002]
[1759256819001,3.06741083,4114.7,4114.6,1.104]
[1759256819203,3.06741083,4114.7,4114.6,0.002]
[1759256819392,5.46741083,4114.7,4114.6,0.002]
[1759256823635,6.25941083,4114.7,4114.6,0.002]
[1759256823812,6.78215771,4114.7,4114.6,0.002]
[1759256825115,13.80215771,4114.7,4114.6,0.002]
[1759256825528,12.48741083,4114.7,4114.6,0.002]
[1759256825695,12.60901083,4114.7,4114.6,0.002]
[1759256826208,13.40101083,4114.7,4114.6,0.002]
[1759256827114,12.60901083,4114.7,4114.6,0.002]
[1759256827916,12.22111083,4114.7,4114.6,0.002]
[1759256828136,11.97191083,4114.7,4114.6,0.002]
[1759256829893,12.22111083,4114.7,4114.6,0.002]
[1759256830090,11.97191083,4114.7,4114.6,0.002]
[1759256830391,12.22111083,4114.7,4114.6,0.002]
[1759256830592,11.97191083,4114.7,4114.6,0.002]
[1759256837027,12.20391083,4114.7,4114.6,0.002]
[1759256838906,12.59181083,4114.7,4114.6,0.002]
[1759256839415,12.99591083,4114.7,4114.6,0.002]
[1759256839737,16.15781083,4114.7,4114.6,0.002]
[1759256840433,16.68027666,4114.7,4114.6,0.002]
[1759256841016,0.792,4114.5,4114.1,1e-08]
[1759256841238,12.12212716,4114.2,4114.1,1e-08]
[1759256841443,14.89612716,4114.2,4114.1,1e-08]
[1759256841606,22.54242716,4114.2,4114.1,1e-08]
[1759256841935,23.06509651,4114.2,4114.1,1e-08]
[1759256842504,18.87279651,4114.2,4114.1,1e-08]
[1759256842853,21.91612716,4114.2,4114.1,1e-08]
[1759256843206,22.4390829,4114.2,4114.1,1e-08]
[1759256843843,18.35012716,4114.2,4114.1,1e-08]
[1759256844026,11.85060619,4114.2,4114.1,0.66370001]
[1759256844539,11.85060619,4114.2,4114.1,1e-08]
[1759256846432,18.58852716,4114.2,4114.1,1e-08]
[1759256846632,20.29217777,4114.2,4114.1,1e-08]
[1759256847038,20.38956262,4114.2,4114.1,1e-08]
[1759256847420,20.00166262,4114.2,4114.1,1e-08]
[1759256847747,19.76326262,4114.2,4114.1,1e-08]
[1759256847913,19.66587777,4114.2,4114.1,1e-08]
[1759256848113,18.87387777,4114.2,4114.1,1e-08]
[1759256848325,18.87387777,4114.2,4114.1,0.22820001]
[1759256848735,18.87387777,4114.2,4114.1,0.66370001]
[1759256849036,18.87387777,4114.2,4114.1,0.22820001]
[1759256849246,18.87387777,4114.2,4114.1,1e-08]
[1759256850341,12.3743568,4114.2,4114.1,1e-08]
[1759256850653,5.3543568,4114.2,4114.1,0.22820001]
[1759256850863,4.83060619,4114.2,4114.1,0.22820001]
[1759256851055,4.95220619,4114.2,4114.1,0.22820001]
[1759256851754,4.95220619,4114.2,4114.1,1e-08]
[1759256851755,5.98260619,4114.2,4114.1,1e-08]
[1759256851984,13.9142568,4114.2,4114.1,1e-08]
[1759256852258,31.37589678,4114.2,4114.1,1e-08]
[1759256852621,31.47328163,4114.2,4114.1,1e-08]
[1759256856048,3.22290162,4113.7,4113.6,1e-08]
[1759256856250,8.39790162,4113.7,4113.6,1e-08]
[1759256856438,8.92165223,4113.7,4113.6,1e-08]
[1759256856757,9.16005223,4113.7,4113.6,1e-08]
[1759256857734,8.92165223,4113.7,4113.6,1e-08]
[1759256858570,8.12965223,4113.7,4113.6,1e-08]
[1759256858867,5.35465223,4113.7,4113.6,0.22820001]
[1759256859434,5.35465223,4113.7,4113.6,1e-08]
[1759256860168,4.83090162,4113.7,4113.6,0.66370001]
[1759256862041,2.43090162,4113.7,4113.6,0.66370001]
[1759256862475,2.43084551,4113.8,4113.6,0.66370001]
[1759256862639,2.4308819,4113.8,4113.7,0.7176]
[1759256865451,7.02,4114.2,4113.7,0.7176]
[1759256865661,2.4,4114.5,4113.8,0.7176]
[1759256865954,2.43056077,4114.3,4113.9,0.7176]
[1759256866165,0.1216,4113.7,4113.6,1e-08]
[1759256866353,0.1216,4113.7,4113.6,0.47046004]
[1759256866868,0.1216,4113.7,4113.6,1.18806004]
[1759256867457,0.1216,4113.7,4113.6,0.94475248]
[1759256869175,0.1216,4113.7,4113.6,3.71975248]
[1759256869896,2.55250162,4113.7,4113.6,0.71760001]
[1759256870080,2.55250162,4113.7,4113.6,3.01740001]
[1759256870256,2.55250162,4113.7,4113.6,3.49160001]
[1759256870784,2.55250162,4113.7,4113.6,0.71760001]
[1759256870972,2.55250162,4113.7,4113.6,3.49160001]
[1759256871358,2.55250162,4113.7,4113.6,2.77400001]
[1759256872010,2.55250162,4113.7,4113.6,3.01740001]
[1759256872357,2.55250162,4113.7,4113.6,3.49160001]
[1759256873687,0.1216,4113.7,4113.6,3.49160001]
[1759256876217,0.1216,4113.7,4113.6,3.84339115]
[1759256877294,0.1216,4113.7,4113.6,3.86770075]
[1759256878498,0.1216,4113.7,4113.6,6.27435186]
[1759256878903,0.1216,4113.9,4113.7,2.43088128]
[1759256879199,0.1216,4113.9,4113.8,0.7176]
[1759256879528,0.1216,4113.9,4113.8,1.58812911]
[1759256879704,0.1216,4113.9,4113.8,0.7176]
[1759256882004,0.1216,4113.9,4113.8,3.4916]
[1759256883293,0.1216,4113.9,4113.8,5.92244253]
[1759256883798,0.1216,4113.9,4113.8,3.4916]
[1759256884537,0.1216,4113.9,4113.8,5.92244253]
[1759256884693,0.1216,4113.9,4113.8,4.92422636]
[1759256885424,0.1216,4113.9,4113.8,7.35506889]
[1759256885631,0.001,4114.2,4114.1,2.43066527]
[1759256885843,0.001,4114.2,4114.1,5.22897192]
[1759256886046,0.001,4114.2,4114.1,5.20466527]
[1759256886215,0.001,4114.2,4114.1,7.39117934]
[1759256886549,0.001,4114.2,4114.1,4.96051407]
[1759256886841,0.001,4114.2,4114.1,7.39117934]
[1759256887347,0.001,4114.2,4114.1,4.96051407]
[1759256887548,2.43164789,4114.2,4114.1,2.774]
[1759256887855,2.65714789,4114.2,4114.1,2.774]
[1759256888720,0.001,4114.2,4114.1,2.774]
[1759256889848,0.001,4114.2,4114.1,3.4916]
[1759256890449,0.001,4114.2,4114.1,3.0174]
[1759256890750,0.001,4114.2,4114.1,4.35787807]
[1759256890919,0.001,4114.2,4114.1,3.64027807]
[1759256891120,0.001,4114.2,4114.1,4.31957807]
[1759256891658,0.001,4114.2,4114.1,3.4533]
[1759256891854,0.001,4114.2,4114.1,5.88396527]
[1759256892361,0.001,4114.2,4114.1,6.00556527]
[1759256894259,0.001,4114.2,4114.1,5.88396527]
[1759256894468,0.001,4114.2,4114.1,6.00556527]
[1759256894640,0.001,4114.2,4114.1,8.08170202]
[1759256894840,0.001,4114.2,4114.1,8.20330202]
[1759256895770,0.001,4114.2,4114.1,10.60330202]
[1759256900057,0.001,4114.2,4114.1,10.8293448]
[1759256900454,0.001,4114.2,4114.1,8.0553448]
[1759256900659,0.001,4114.2,4114.1,10.8283448]
[1759256901075,0.001,4114.2,4114.1,10.60230202]
[1759256901777,0.001,4114.2,4114.1,3.95800202]
[1759256901947,0.001,4114.2,4114.1,5.32526527]
[1759256904274,0.001,4114.2,4114.1,5.56196527]
[1759256904611,0.001,4114.2,4114.1,5.32526527]
[1759256905382,0.001,4114.2,4114.1,6.00276527]
[1759256908776,0.001,4114.2,4114.1,5.32526527]
[1759256909384,0.001,4114.2,4114.1,6.92334302]
[1759256909596,0.001,4114.2,4114.1,7.36414302]
[1759256911379,0.001,4114.2,4114.1,6.92334302]
[1759256911582,0.001,4114.2,4114.1,7.36414302]
[1759256911901,0.001,4114.2,4114.1,6.92334302]
[1759256912612,0.001,4114.2,4114.1,7.36414302]
[1759256912912,0.001,4114.2,4114.1,0.1216]
[1759256913075,0.2509,4114.2,4114.1,2.773]
[1759256913275,0.001,4114.2,4114.1,2.773]
[1759256913493,0.001,4114.2,4114.1,5.20366527]
[1759256914003,0.001,4114.2,4114.1,5.44036527]
[1759256914226,0.001,4114.2,4114.1,5.20366527]
[1759256914770,0.001,4114.2,4114.1,2.773]
[1759256914972,0.2509,4114.2,4114.1,2.773]
[1759256915205,0.6388,4114.2,4114.1,2.773]
[1759256915410,0.6388,4114.2,4113.6,0.12160001]
[1759256915609,0.1216,4113.9,4113.7,2.773]
[1759256915798,0.1216,4113.9,4113.7,5.20388494]
[1759256917504,0.1216,4113.9,4113.8,9.43084253]
[1759256918204,0.1216,4113.9,4113.8,11.24835538]
[1759256918586,0.1216,4113.9,4113.8,11.01165538]
[1759256920776,0.1216,4113.9,4113.8,9.43084253]
[1759256920972,0.1216,4113.9,4113.8,7.0]
[1759256921178,0.1216,4113.9,4113.8,9.773]
[1759256922598,0.1216,4113.9,4113.8,12.20384253]
[1759256923514,0.1216,4113.9,4113.8,9.773]
[1759256925026,0.3554,4113.9,4113.8,9.772]
[1759256925402,0.1226,4113.9,4113.8,2.772]
[1759256925623,0.1226,4113.9,4113.8,5.20284253]
[1759256925789,0.1226,4113.9,4113.8,2.65914253]
[1759256926130,0.1226,4113.9,4113.8,5.89024253]
[1759256928723,0.1226,4113.9,4113.8,6.31284436]
[1759256929029,0.1226,4113.9,4113.8,6.77194436]
[1759256929337,0.1226,4113.9,4113.8,2.772]
[1759256932208,0.1226,4113.9,4113.6,1e-08]
[1759256932540,2.43090162,4113.7,4113.6,1e-08]
[1759256932743,4.83090162,4113.7,4113.6,2.77200001]
[1759256932905,2.43090162,4113.7,4113.6,2.77200001]
[1759256933102,3.05160162,4113.7,4113.6,2.77200001]
[1759256933535,2.43178829,4113.9,4113.6,2.77200001]
[1759256933708,2.43090162,4113.7,4113.6,2.77200001]
[1759256933908,2.66370162,4113.7,4113.6,2.77200001]
[1759256934109,3.05160162,4113.7,4113.6,2.77200001]
[1759256935053,3.05160162,4113.7,4113.6,1e-08]
[1759256935054,2.66370162,4113.7,4113.6,1e-08]
[1759256935230,3.05160162,4113.7,4113.6,2.77200001]
[1759256936657,2.66370162,4113.7,4113.6,2.77200001]
[1759256937145,2.43090162,4113.7,4113.6,2.77200001]
[1759256937324,3.05160162,4113.7,4113.6,2.77200001]
[1759256938124,2.66370162,4113.7,4113.6,2.77200001]
[1759256938573,2.43090162,4113.7,4113.6,2.77200001]
[1759256939143,2.66370162,4113.7,4113.6,2.77200001]
[1759256939537,2.43090162,4113.7,4113.6,2.77200001]
[1759256941877,2.43090162,4113.7,4113.6,1e-08]
[1759256942040,2.66370162,4113.7,4113.6,2.77300001]
[1759256942241,3.05160162,4113.7,4113.6,2.77300001]
[1759256942774,3.17320162,4113.7,4113.6,2.77300001]
[1759256943081,2.78530162,4113.7,4113.6,2.77300001]
[1759256943274,2.55250162,4113.7,4113.6,2.77300001]
[1759256945578,2.78530162,4113.7,4113.6,2.77300001]
[1759256945980,2.55250162,4113.7,4113.6,2.77300001]
[1759256946482,2.55250162,4113.7,4113.6,3.46040001]
[1759256946679,2.55250162,4113.7,4113.6,3.00130001]
[1759256947082,2.55250162,4113.7,4113.6,2.77300001]
[1759256947873,3.17320162,4113.7,4113.6,1e-08]
[1759256948194,3.17320162,4113.7,4113.6,2.77300001]
[1759256949556,3.17320162,4113.7,4113.6,1e-08]
[1759256949889,3.17320162,4113.7,4113.6,2.77300001]
[1759256950683,3.17320162,4113.7,4113.6,1e-08]
[1759256950684,5.57320162,4113.7,4113.6,1e-08]
[1759256950886,5.57320162,4113.7,4113.6,2.77300001]
[1759256952251,5.18530162,4113.7,4113.6,2.77300001]
[1759256952666,5.57320162,4113.7,4113.6,2.77300001]
[1759256953558,5.18530162,4113.7,4113.6,2.77300001]
[1759256954889,4.95250162,4113.7,4113.6,2.77300001]
[1759256955477,5.20010162,4113.7,4113.6,2.77300001]
[1759256956565,4.95250162,4113.7,4113.6,2.77300001]
[1759256961392,4.95350162,4113.7,4113.6,2.77300001]
[1759256962235,4.95350162,4113.7,4113.6,3.44890001]
[1759256965838,4.95350162,4113.7,4113.6,2.77300001]
[1759256966240,4.95350162,4113.7,4113.6,3.01730001]
[1759256966816,4.95350162,4113.7,4113.6,2.77300001]
[1759256972750,2.55350162,4113.7,4113.6,2.77300001]
[1759256972950,2.55350162,4113.7,4113.6,3.44890001]
[1759256974138,0.001,4113.7,4113.6,3.44890001]
[1759256974451,2.55350162,4113.7,4113.6,3.44890001]
[1759256974657,0.1226,4113.7,4113.6,3.44890001]
[1759256975247,0.1226,4113.7,4113.6,4.59907025]
[1759256976271,0.1226,4113.7,4113.6,7.03003096]
[1759256976637,0.1226,4113.7,4113.6,4.59907025]
[1759256976835,0.1226,4113.7,4113.6,4.62337985]
[1759256977057,0.1226,4113.7,4113.6,7.05434056]
[1759256977266,0.1226,4113.7,4113.6,4.59907025]
[1759256977569,0.001,4113.7,4113.6,7.05434056]
[1759256977746,0.001,4113.7,4113.6,7.03003096]
[1759256978669,0.001,4113.7,4113.6,4.59907025]
[1759256979971,0.001,4113.7,4113.6,7.03003096]
[1759256980352,0.001,4113.7,4113.6,4.59907025]
[1759256980553,0.001,4113.7,4113.6,3.92317025]
[1759256980763,0.001,4113.7,4113.6,4.59807025]
[1759256981381,0.001,4113.7,4113.6,2.05017025]
[1759256981545,0.001,4113.7,4113.6,4.35800001]
[1759256981941,0.001,4113.7,4113.6,4.10960001]
[1759256982169,0.001,4113.7,4113.6,3.67200001]
[1759256982374,0.001,4113.7,4113.6,3.74802072]
[1759256982573,0.001,4113.7,4113.6,4.43402072]
[1759256983078,0.001,4113.7,4113.6,5.12073615]
[1759256984071,0.001,4113.7,4113.6,4.68313615]
[1759256984382,0.001,4113.7,4113.6,5.12073615]
[1759256985778,0.001,4113.7,4113.6,7.55169686]
[1759256986288,0.001,4113.7,4113.6,5.12073615]
[1759256987185,0.001,4113.7,4113.6,7.55169686]
[1759256988480,0.001,4113.7,4113.6,5.12073615]
[1759256988682,0.001,4113.7,4113.6,7.55169686]
[1759256990554,0.001,4113.7,4113.6,4.43473615]
[1759256990968,0.001,4113.7,4113.6,4.68313615]
[1759256991180,0.001,4113.7,4113.6,5.12073615]
[1759256991866,0.001,4113.7,4113.6,4.68213615]
[1759256992094,0.001,4113.7,4113.6,4.43373615]
[1759256993390,0.001,4113.7,4113.6,5.11973615]
[1759256994765,0.001,4113.7,4113.6,4.68213615]
[1759256995000,0.001,4113.7,4113.6,3.74702072]
[1759256996099,0.001,4113.7,4113.6,3.99542072]
[1759256997191,0.001,4113.7,4113.6,3.74702072]
[1759256999525,0.001,4113.7,4113.6,3.99542072]
[1759256999826,0.001,4113.7,4113.6,4.43302072]
[1759257000028,0.001,4113.7,4113.6,5.13178864]
[1759257000531,0.001,4113.7,4113.6,4.44578864]
[1759257000888,0.001,4113.7,4113.6,3.74702072]
[1759257001094,0.2305,4113.7,4113.6,3.74702072]
[1759257001395,0.1226,4113.7,4113.6,3.67100001]
[1759257003290,0.1226,4113.7,4113.6,0.90000001]
[1759257003497,0.1226,4113.7,4113.6,3.67100001]
[1759257005299,3.04930162,4113.7,4113.6,0.90000001]
[1759257005501,5.44930162,4113.7,4113.6,3.67100001]
[1759257005733,5.44930162,4113.7,4113.6,0.90000001]